[Event "Croatian junior league 2021"]
[Site "Rabac"]
[Date "2021.04.07"]
[Round "4.22"]
[White "Denic, Marin"]
[Black "Purini, Bruno"]
[Result "1/2-1/2"]
[ECO "B15"]
[WhiteElo "1914"]
[BlackElo "1987"]
[Annotator "NA RC"]
[PlyCount "49"]
[EventDate "2021.04.06"]
[EventType "swiss"]
[EventCountry "CRO"]
[SourceTitle "playchess.com"]
[Source "ChessBase"]
[SourceQuality "1"]
[TimeControl "5400+30"]

1. e4 {[%emt 0:01:22]} c6 {[%emt 0:00:00]} 2. d4 {[%emt 0:00:00]} d5 {[%emt 0:00:05]} 3. Nc3 {[%emt 0:00:00]} dxe4 {[%emt 0:00:27]} 4. Nxe4 {[%emt 0:00:00]} Nf6 {[%emt 0:00:23]} 5. Nxf6+ {[%emt 0:01:36]} exf6 {[%emt 0:00:03]} 6. c3 {[%emt 0:00:41]} Bf5 {[%emt 0:01:54]} 7. Bd3 {[%emt 0:01:10]} Bxd3 {[%emt 0:00:22]} 8. Qxd3 {[%emt 0:00:05]} Bd6 {[%emt 0:01:21]} 9. Nf3 {[%emt 0:12:37]} O-O {[%emt 0:00:38]} 10. O-O {[%emt 0:00:02]} Qc7 {[%emt 0:01:28]} 11. Be3 {[%emt 0:02:15]} Nd7 {[%emt 0:00:55]} 12. Rfd1 {[%emt 0:02:20]} Rad8 {[%emt 0:07:04]} 13. h3 {[%emt 0:20:43]} Rfe8 {[%emt 0:02:58]} 14. Nd2 {[%emt 0:05:39]} g6 {[%emt 0:01:45]} 15. Nc4 {[%emt 0:05:37]} Bf4 {[%emt 0:05:19]} 16. Bxf4 {[%emt 0:03:57]} Qxf4 {[%emt 0:00:16]} 17. Qd2 {[%emt 0:00:33]} Qc7 {[%emt 0:02:42]} 18. Re1 {[%emt 0:04:31]} b5 {[%emt 0:00:45]} 19. Rxe8+ {[%emt 0:00:48]} Rxe8 {[%emt 0:00:05]} 20. Ne3 {[%emt 0:00:25]} f5 {[%emt 0:01:50]} 21. Re1 {[%emt 0:17:43]} Nf6 {[%emt 0:01:43]} 22. f3 {[%emt 0:03:59]} Kg7 {[%emt 0:06:18]} 23. Nxf5+ {[%emt 0:02:18]} gxf5 {[%emt 0:00:49]} 24. Qg5+ {[%emt 0:00:23]} Kf8 {[%emt 0:00:10]} 25. Qh6+ {[%emt 0:00:28]} 1/2-1/2

[Event "Croatian junior league 2021"]
[Site "Rabac"]
[Date "2021.04.08"]
[Round "5.3"]
[White "Purini, Bruno"]
[Black "Novosel, Lovro"]
[Result "1-0"]
[ECO "B51"]
[WhiteElo "1987"]
[BlackElo "1997"]
[Annotator "ChessBase"]
[PlyCount "79"]
[EventDate "2021.04.06"]
[EventType "swiss"]
[EventCountry "CRO"]
[SourceTitle "playchess.com"]
[Source "ChessBase"]
[SourceQuality "1"]
[TimeControl "5400+30"]

1. e4 {[%emt 0:03:43]} c5 {[%emt 0:00:00]} 2. Nf3 {[%emt 0:00:19]} d6 {[%emt 0:00:00]} 3. Bb5+ {[%emt 0:01:37]} Nd7 {[%emt 0:00:16]} 4. a4 {[%emt 0:03:03]} Ngf6 {[%emt 0:01:28]} 5. Qe2 {[%emt 0:06:16]} e6 {[%emt 0:01:01]} 6. c3 {[%emt 0:01:11]} Be7 {[%emt 0:01:18]} 7. d4 {[%emt 0:00:30]} O-O {[%emt 0:01:13]} 8. O-O {[%emt 0:00:54]} a6 {[%emt 0:00:19]} 9. Bd3 {[%emt 0:00:23]} Re8 {[%emt 0:07:52]} 10. Rd1 {[%emt 0:01:36]} Qc7 {[%emt 0:02:06]} 11. Nbd2 {[%emt 0:05:53]} g6 {[%emt 0:08:51]} 12. Nf1 {[%emt 0:01:43]} b6 {[%emt 0:00:32]} 13. Ng3 {[%emt 0:00:56]} Bb7 {[%emt 0:01:21]} 14. h4 {[%emt 0:02:41]} Bf8 {[%emt 0:05:52]} 15. h5 {[%emt 0:03:23]} e5 {[%emt 0:09:08]} 16. d5 {[%emt 0:01:31]} Bg7 {[%emt 0:04:22]} 17. hxg6 {[%emt 0:01:39]} hxg6 {[%emt 0:00:09]} 18. Bg5 {[%emt 0:00:59]} Nh7 {[%emt 0:01:16]} 19. Be3 {[%emt 0:02:18]} Ndf6 {[%emt 0:00:28]} 20. Ng5 {[%emt 0:00:40]} Bc8 {[%emt 0:04:14]} 21. Rf1 {[%emt 0:02:18]} Qb7 {[%emt 0:02:43]} 22. Nxh7 {[%emt 0:01:07]} Kxh7 {[%emt 0:00:50]} 23. f3 {[%emt 0:02:38]} Bd7 {[%emt 0:01:03]} 24. Qd2 {[%emt 0:01:59]} b5 {[%emt 0:03:11]} 25. a5 {[%emt 0:01:04]} c4 {[%emt 0:02:36]} 26. Bc2 {[%emt 0:02:12]} Rab8 {[%emt 0:00:41]} 27. Kf2 {[%emt 0:03:41]} b4 {[%emt 0:05:28]} 28. Rh1+ {[%emt 0:00:14]} Kg8 {[%emt 0:00:04]} 29. Rh2 {[%emt 0:03:29]} bxc3 {[%emt 0:10:50]} 30. bxc3 {[%emt 0:00:02]} Bb5 {[%emt 0:00:24]} 31. Bh6 {[%emt 0:01:11]} Qa7+ {[%emt 0:00:30]} 32. Ke2 {[%emt 0:00:16]} Bh8 {[%emt 0:01:30]} 33. Rah1 {[%emt 0:00:56]} Qd7 {[%emt 0:02:21]} 34. Nf5 {[%emt 0:12:43]} Ba4 {[%emt 0:04:16]} 35. Bg7 {[%emt 0:09:32]} Nh5 {[%emt 0:01:56]} 36. Rxh5 {[%emt 0:00:17]} gxh5 {[%emt 0:00:38]} 37. Qh6 {[%emt 0:00:20]} f6 {[%emt 0:00:22]} 38. Qxh8+ {[%emt 0:00:27]} Kf7 {[%emt 0:00:03]} 39. Qxh5+ {[%emt 0:00:10]} Kg8 {[%emt 0:00:15]} 40. Qg6 {[%emt 0:01:00]} 1-0

[Event "Croatian junior league 2021"]
[Site "Rabac"]
[Date "2021.04.08"]
[Round "5.4"]
[White "Moric, Ivan"]
[Black "Duda, Daniel"]
[Result "0-1"]
[ECO "B78"]
[WhiteElo "1907"]
[BlackElo "1968"]
[Annotator "ChessBase"]
[PlyCount "64"]
[EventDate "2021.04.06"]
[EventType "swiss"]
[EventCountry "CRO"]
[SourceTitle "playchess.com"]
[Source "ChessBase"]
[SourceQuality "1"]
[TimeControl "5400+30"]

1. e4 {[%emt 0:00:00]} c5 {[%emt 0:04:13]} 2. Nf3 {[%emt 0:00:00]} g6 {[%emt 0:00:03]} 3. d4 {[%emt 0:00:00]} cxd4 {[%emt 0:00:06]} 4. Nxd4 {[%emt 0:00:00]} Nc6 {[%emt 0:00:04]} 5. Nc3 {[%emt 0:00:48]} Bg7 {[%emt 0:00:05]} 6. Be3 {[%emt 0:00:09]} Nf6 {[%emt 0:06:07]} 7. f3 {[%emt 0:00:38]} O-O {[%emt 0:00:14]} 8. Bc4 {[%emt 0:00:09]} d6 {[%emt 0:00:15]} 9. Qd2 {[%emt 0:00:37]} Bd7 {[%emt 0:00:34]} 10. O-O-O {[%emt 0:01:08]} Rc8 {[%emt 0:00:05]} 11. Bb3 {[%emt 0:00:15]} Nxd4 {[%emt 0:00:13]} 12. Bxd4 {[%emt 0:00:42]} b5 {[%emt 0:00:07]} 13. h4 {[%emt 0:12:40]} a5 {[%emt 0:02:15]} 14. h5 {[%emt 0:17:24]} a4 {[%emt 0:06:09]} 15. Bxf6 {[%emt 0:04:59]} Bxf6 {[%emt 0:22:36]} 16. hxg6 {[%emt 0:04:10]} e6 {[%emt 0:01:57]} 17. Qxd6 {[%emt 0:20:47]} axb3 {[%emt 0:02:47]} 18. Qh2 {[%emt 0:02:41]} h6 {[%emt 0:00:46]} 19. f4 {[%emt 0:07:17]} Bg7 {[%emt 0:05:39]} 20. gxf7+ {[%emt 0:02:12]} Rxf7 {[%emt 0:01:31]} 21. axb3 {[%emt 0:00:25]} Qa5 {[%emt 0:00:41]} 22. e5 {[%emt 0:01:20]} Bc6 {[%emt 0:04:57]} 23. Qg3 {[%emt 0:02:36]} Qa1+ {[%emt 0:01:48]} 24. Kd2 {[%emt 0:01:16]} Qxb2 {[%emt 0:01:19]} 25. Rxh6 {[%emt 0:02:58]} Rd7+ {[%emt 0:06:57]} 26. Ke1 {[%emt 0:00:15]} Qxc2 {[%emt 0:02:42]} 27. Rxe6 {[%emt 0:02:59]} Rxd1+ {[%emt 0:04:28]} 28. Nxd1 {[%emt 0:00:07]} Rd8 {[%emt 0:00:09]} 29. Rd6 {[%emt 0:00:44]} Rxd6 {[%emt 0:02:10]} 30. exd6 {[%emt 0:00:06]} Qxg2 {[%emt 0:00:09]} 31. Qe3 {[%emt 0:04:02]} Qd5 {[%emt 0:03:14]} 32. Qd2 {[%emt 0:03:11]} Qxb3 {[%emt 0:00:54]} 0-1

[Event "Croatian junior league 2021"]
[Site "Rabac"]
[Date "2021.04.08"]
[Round "5.5"]
[White "Bunic, Emanuel"]
[Black "Cotic, Borna"]
[Result "0-1"]
[ECO "D36"]
[WhiteElo "1839"]
[BlackElo "2120"]
[Annotator "RC"]
[PlyCount "98"]
[EventDate "2021.04.06"]
[EventType "swiss"]
[EventCountry "CRO"]
[SourceTitle "playchess.com"]
[Source "ChessBase"]
[SourceQuality "1"]
[TimeControl "5400+30"]

1. d4 {[%emt 0:07:24]} d5 {[%emt 0:08:30]} 2. c4 {[%emt 0:00:00]} e6 {[%emt 0:00:20]} 3. Nc3 {[%emt 0:00:00]} Nf6 {[%emt 0:01:10]} 4. cxd5 {[%emt 0:00:36]} exd5 {[%emt 0:00:11]} 5. Bg5 {[%emt 0:00:00]} Be7 {[%emt 0:00:23]} 6. e3 {[%emt 0:00:00]} Nbd7 {[%emt 0:00:43]} 7. Bd3 {[%emt 0:00:00]} c6 {[%emt 0:02:28]} 8. Qc2 {[%emt 0:00:00]} Nh5 {[%emt 0:05:05]} 9. Bxe7 {[%emt 0:00:37]} Qxe7 {[%emt 0:00:09]} 10. Nf3 {[%emt 0:00:29]} Nf4 {[%emt 0:02:02]} 11. Bf1 {[%emt 0:03:21]} O-O {[%emt 0:08:48]} 12. O-O-O {[%emt 0:05:24]} Ng6 {[%emt 0:04:44]} 13. h4 {[%emt 0:02:20]} Re8 {[%emt 0:01:00]} 14. h5 {[%emt 0:05:22]} Ngf8 {[%emt 0:00:27]} 15. Bd3 {[%emt 0:01:25]} Nf6 {[%emt 0:07:10]} 16. Ne5 {[%emt 0:14:27]} Ng4 {[%emt 0:01:50]} 17. Nxg4 {[%emt 0:05:58]} Bxg4 {[%emt 0:00:20]} 18. Rde1 {[%emt 0:01:50]} c5 {[%emt 0:11:17]} 19. f3 {[%emt 0:07:11]} Be6 {[%emt 0:04:12]} 20. g4 {[%emt 0:02:26]} Rab8 {[%emt 0:02:58]} 21. Qg2 {[%emt 0:04:16]} b5 {[%emt 0:03:18]} 22. Bxb5 {[%emt 0:10:38]} Rec8 {[%emt 0:00:25]} 23. Bd3 {[%emt 0:05:04]} cxd4 {[%emt 0:04:43]} 24. exd4 {[%emt 0:00:47]} Rxc3+ {[%emt 0:14:50]} 25. bxc3 {[%emt 0:01:10]} Qa3+ {[%emt 0:00:24]} 26. Kd1 {[%emt 0:04:53]} Bd7 {[%emt 0:00:59]} 27. Bc2 {[%emt 0:08:18]} Ba4 {[%emt 0:04:20]} 28. Bxa4 {[%emt 0:02:43]} Rb1+ {[%emt 0:00:38]} 29. Kd2 {[%emt 0:00:44]} Rb2+ {[%emt 0:00:05]} 30. Bc2 {[%emt 0:02:16]} Rxc2+ {[%emt 0:00:05]} 31. Kxc2 {[%emt 0:00:06]} Qxa2+ {[%emt 0:00:03]} 32. Kd3 {[%emt 0:00:12]} Qxg2 {[%emt 0:00:06]} 33. Ke3 {[%emt 0:00:30]} Ne6 {[%emt 0:00:38]} 34. Ra1 {[%emt 0:01:51]} f5 {[%emt 0:02:35]} 35. Rhb1 {[%emt 0:01:33]} f4+ {[%emt 0:00:28]} 36. Kd3 {[%emt 0:00:28]} Qxf3+ {[%emt 0:00:06]} 37. Kd2 {[%emt 0:00:37]} Qf2+ {[%emt 0:01:22]} 38. Kd1 {[%emt 0:00:27]} Qf3+ {[%emt 0:00:59]} 39. Kd2 {[%emt 0:00:41]} h6 {[%emt 0:00:22]} 40. Rb8+ {[%emt 0:00:38]} Kh7 {[%emt 0:00:09]} 41. Rxa7 {[%emt 0:00:36]} Qxg4 {[%emt 0:00:34]} 42. Raa8 {[%emt 0:00:46]} Qxh5 {[%emt 0:00:08]} 43. Rh8+ {[%emt 0:00:08]} Kg6 {[%emt 0:00:06]} 44. Ra6 {[%emt 0:00:16]} Qh2+ {[%emt 0:00:32]} 45. Kd1 {[%emt 0:00:33]} Qg1+ {[%emt 0:00:07]} 46. Kc2 {[%emt 0:00:27]} Qg2+ {[%emt 0:00:14]} 47. Kb3 {[%emt 0:00:14]} Qe2 {[%emt 0:00:08]} 48. Ra2 {[%emt 0:00:42]} f3 {[%emt 0:00:49]} 49. Re8 {[%emt 0:00:28]} Nxd4+ {[%emt 0:00:10]} 0-1

[Event "Croatian junior league 2021"]
[Site "Rabac"]
[Date "2021.04.08"]
[Round "5.6"]
[White "Simunic, Krunoslav"]
[Black "Zadro, Matej"]
[Result "1/2-1/2"]
[ECO "E73"]
[WhiteElo "1999"]
[BlackElo "1742"]
[Annotator "RC"]
[PlyCount "117"]
[EventDate "2021.04.06"]
[EventType "swiss"]
[EventCountry "CRO"]
[SourceTitle "playchess.com"]
[Source "ChessBase"]
[SourceQuality "1"]
[TimeControl "5400+30"]

1. d4 {[%emt 0:01:19]} Nf6 {[%emt 0:00:00]} 2. c4 {[%emt 0:00:13]} g6 {[%emt 0:00:03]} 3. Nc3 {[%emt 0:00:32]} Bg7 {[%emt 0:00:07]} 4. e4 {[%emt 0:00:34]} d6 {[%emt 0:00:07]} 5. Be2 {[%emt 0:00:28]} O-O {[%emt 0:03:45]} 6. Bg5 {[%emt 0:00:19]} a6 {[%emt 0:01:15]} 7. h3 {[%emt 0:01:13]} c5 {[%emt 0:01:02]} 8. d5 {[%emt 0:01:41]} b5 {[%emt 0:03:30]} 9. cxb5 {[%emt 0:05:17]} axb5 {[%emt 0:16:02]} 10. Bxf6 {[%emt 0:13:56]} Bxf6 {[%emt 0:00:15]} 11. Bxb5 {[%emt 0:00:22]} Qa5 {[%emt 0:02:01]} 12. Nge2 {[%emt 0:01:05]} Ba6 {[%emt 0:05:50]} 13. Bxa6 {[%emt 0:04:15]} Nxa6 {[%emt 0:00:24]} 14. O-O {[%emt 0:04:27]} Rfb8 {[%emt 0:05:57]} 15. Rb1 {[%emt 0:08:45]} c4 {[%emt 0:28:28]} 16. Nd4 {[%emt 0:05:00]} Nb4 {[%emt 0:01:44]} 17. a3 {[%emt 0:01:09]} Bxd4 {[%emt 0:00:12]} 18. Qxd4 {[%emt 0:14:30]} Nd3 {[%emt 0:01:17]} 19. b3 {[%emt 0:01:38]} Nf4 {[%emt 0:09:21]} 20. Kh2 {[%emt 0:10:11]} cxb3 {[%emt 0:03:27]} 21. a4 {[%emt 0:03:48]} Rb4 {[%emt 0:02:19]} 22. Qe3 {[%emt 0:01:40]} Nh5 {[%emt 0:00:20]} 23. Rb2 {[%emt 0:02:00]} Nf6 {[%emt 0:01:59]} 24. Ra1 {[%emt 0:04:42]} Nd7 {[%emt 0:00:45]} 25. f4 {[%emt 0:05:08]} Nc5 {[%emt 0:01:43]} 26. e5 {[%emt 0:01:59]} Rab8 {[%emt 0:03:52]} 27. exd6 {[%emt 0:04:01]} exd6 {[%emt 0:00:01]} 28. f5 {[%emt 0:01:22]} Rc4 {[%emt 0:04:07]} 29. Ne2 {[%emt 0:01:15]} Qd8 {[%emt 0:00:37]} 30. a5 {[%emt 0:01:01]} Qf6 {[%emt 0:00:18]} 31. Rab1 {[%emt 0:00:36]} Re4 {[%emt 0:00:50]} 32. Qf3 {[%emt 0:00:45]} Qxf5 {[%emt 0:01:14]} 33. Qxf5 {[%emt 0:00:10]} gxf5 {[%emt 0:00:04]} 34. Ng3 {[%emt 0:00:54]} Reb4 {[%emt 0:00:22]} 35. Nxf5 {[%emt 0:00:33]} Kf8 {[%emt 0:03:13]} 36. Nxd6 {[%emt 0:00:25]} Ke7 {[%emt 0:00:23]} 37. Nf5+ {[%emt 0:00:20]} Kf6 {[%emt 0:00:10]} 38. Rf2 {[%emt 0:00:24]} Ke5 {[%emt 0:00:55]} 39. Ne7 {[%emt 0:00:51]} Kd6 {[%emt 0:01:00]} 40. Nc6 {[%emt 0:00:18]} Kxd5 {[%emt 0:00:21]} 41. Nxb8 {[%emt 0:00:27]} Rxb8 {[%emt 0:00:07]} 42. Rxf7 {[%emt 0:00:15]} Kc4 {[%emt 0:00:16]} 43. Rc7 {[%emt 0:00:45]} Kb4 {[%emt 0:00:28]} 44. Rxh7 {[%emt 0:00:47]} Ka3 {[%emt 0:00:16]} 45. a6 {[%emt 0:00:32]} Nxa6 {[%emt 0:00:21]} 46. Ra7 {[%emt 0:00:15]} Ka2 {[%emt 0:00:12]} 47. Rf1 {[%emt 0:00:44]} Rb6 {[%emt 0:00:04]} 48. h4 {[%emt 0:00:33]} b2 {[%emt 0:00:05]} 49. h5 {[%emt 0:00:21]} b1=Q {[%emt 0:00:03]} 50. Rxb1 {[%emt 0:00:06]} Kxb1 {[%emt 0:00:07]} 51. g4 {[%emt 0:00:17]} Nc5 {[%emt 0:00:17]} 52. g5 {[%emt 0:00:38]} Ne4 {[%emt 0:02:53]} 53. g6 {[%emt 0:00:26]} Nf6 {[%emt 0:00:01]} 54. g7 {[%emt 0:00:59]} Rb5 {[%emt 0:00:43]} 55. Ra3 {[%emt 0:00:44]} Rxh5+ {[%emt 0:00:05]} 56. Rh3 {[%emt 0:00:17]} Rg5 {[%emt 0:00:37]} 57. Rg3 {[%emt 0:00:22]} Ng4+ {[%emt 0:00:04]} 58. Kh3 {[%emt 0:00:08]} Rxg7 {[%emt 0:00:04]} 59. Rxg4 {[%emt 0:00:01]} 1/2-1/2

[Event "Croatian junior league 2021"]
[Site "Rabac"]
[Date "2021.04.08"]
[Round "5.7"]
[White "Horcicka, Jan"]
[Black "Denic, Marin"]
[Result "0-1"]
[ECO "C50"]
[WhiteElo "1698"]
[BlackElo "1914"]
[Annotator "NA"]
[PlyCount "54"]
[EventDate "2021.04.06"]
[EventType "swiss"]
[EventCountry "CRO"]
[SourceTitle "playchess.com"]
[Source "ChessBase"]
[SourceQuality "1"]
[TimeControl "5400+30"]

1. e4 {[%emt 0:00:00]} e5 {[%emt 0:00:46]} 2. Nf3 {[%emt 0:00:20]} Nc6 {[%emt 0:00:07]} 3. Bc4 {[%emt 0:00:10]} Bc5 {[%emt 0:00:09]} 4. Nc3 {[%emt 0:00:49]} d6 {[%emt 0:00:34]} 5. d3 {[%emt 0:00:29]} Be6 {[%emt 0:00:39]} 6. Nd5 {[%emt 0:05:27]} Nce7 {[%emt 0:01:04]} 7. c3 {[%emt 0:05:20]} c6 {[%emt 0:00:45]} 8. Nxe7 {[%emt 0:00:34]} Qxe7 {[%emt 0:00:38]} 9. Bxe6 {[%emt 0:00:37]} Qxe6 {[%emt 0:01:13]} 10. O-O {[%emt 0:00:28]} Nf6 {[%emt 0:01:53]} 11. d4 {[%emt 0:01:56]} Bb6 {[%emt 0:01:06]} 12. Qc2 {[%emt 0:01:54]} O-O {[%emt 0:01:41]} 13. Ng5 {[%emt 0:05:23]} Qe7 {[%emt 0:04:33]} 14. dxe5 $1 {[%emt 0:09:34]} Qxe5 $11 {[%emt 0:09:54]} 15. Kh1 {[%emt 0:05:07]} h6 {[%emt 0:08:27]} 16. f4 {[%emt 0:04:44]} Qe7 {[%emt 0:01:13]} 17. e5 {[%emt 0:01:54]} hxg5 {[%emt 0:02:27]} 18. exf6 {[%emt 0:01:08]} Qxf6 {[%emt 0:00:54]} 19. Rf3 {[%emt 0:01:31]} g4 {[%emt 0:15:28]} 20. Rg3 {[%emt 0:00:58]} Qe6 {[%emt 0:03:31]} 21. Bd2 {[%emt 0:02:57]} Bf2 {[%emt 0:01:20]} 22. f5 {[%emt 0:01:19]} Qe2 {[%emt 0:00:28]} 23. Rd3 {[%emt 0:00:48]} Rfe8 {[%emt 0:00:47]} 24. Rxd6 {[%emt 0:02:57]} Rad8 {[%emt 0:03:48]} 25. Rxd8 {[%emt 0:00:45]} Rxd8 {[%emt 0:00:13]} 26. Rd1 {[%emt 0:00:29]} Be3 {[%emt 0:01:46]} 27. f6 {[%emt 0:02:51]} Rxd2 {[%emt 0:00:43]} 0-1

[Event "Croatian junior league 2021"]
[Site "Rabac"]
[Date "2021.04.08"]
[Round "5.8"]
[White "Cecic-Sule, Dino"]
[Black "Kostic, Lovro"]
[Result "0-1"]
[ECO "A42"]
[WhiteElo "1770"]
[BlackElo "1367"]
[Annotator "NA"]
[PlyCount "134"]
[EventDate "2021.04.06"]
[EventType "swiss"]
[EventCountry "CRO"]
[SourceTitle "playchess.com"]
[Source "ChessBase"]
[SourceQuality "1"]
[TimeControl "5400+30"]

1. d4 {[%emt 0:01:13]} g6 {[%emt 0:00:00]} 2. c4 {[%emt 0:00:28]} Bg7 {[%emt 0:00:00]} 3. Nc3 {[%emt 0:00:08]} d6 {[%emt 0:00:02]} 4. e4 {[%emt 0:00:08]} Nd7 {[%emt 0:00:21]} 5. Nf3 {[%emt 0:00:12]} c5 {[%emt 0:04:41]} 6. Be3 {[%emt 0:08:22]} b6 {[%emt 0:07:33]} 7. Qd2 {[%emt 0:09:07]} Bb7 {[%emt 0:06:38]} 8. d5 {[%emt 0:04:20]} h6 {[%emt 0:08:31]} 9. Be2 {[%emt 0:01:08]} Ngf6 {[%emt 0:06:22]} 10. h3 {[%emt 0:02:33]} a6 {[%emt 0:02:57]} 11. O-O {[%emt 0:09:14]} Qc7 {[%emt 0:07:18]} 12. Nh4 {[%emt 0:14:23]} Nf8 {[%emt 0:18:42]} 13. f4 {[%emt 0:01:02]} O-O-O {[%emt 0:08:06]} 14. Rab1 {[%emt 0:14:34]} e6 {[%emt 0:02:17]} 15. b4 {[%emt 0:06:54]} exd5 {[%emt 0:05:14]} 16. cxd5 {[%emt 0:01:10]} N8d7 {[%emt 0:02:28]} 17. Na4 {[%emt 0:08:15]} Nxe4 {[%emt 0:00:46]} 18. Qd3 {[%emt 0:01:25]} Ng3 {[%emt 0:03:28]} 19. bxc5 {[%emt 0:02:24]} dxc5 {[%emt 0:03:44]} 20. Rfc1 {[%emt 0:03:25]} Nxe2+ {[%emt 0:00:51]} 21. Qxe2 {[%emt 0:00:02]} Kb8 {[%emt 0:01:51]} 22. Nxb6 {[%emt 0:05:23]} Rhe8 {[%emt 0:03:23]} 23. Nxd7+ {[%emt 0:02:31]} Rxd7 {[%emt 0:00:24]} 24. Qc2 {[%emt 0:01:43]} Rxe3 {[%emt 0:00:49]} 25. Rxb7+ {[%emt 0:00:14]} Kxb7 {[%emt 0:00:59]} 26. Rb1+ {[%emt 0:01:15]} Ka7 {[%emt 0:01:03]} 27. Nf3 {[%emt 0:00:39]} Bd4 {[%emt 0:00:36]} 28. Nxd4 {[%emt 0:01:14]} cxd4 {[%emt 0:00:10]} 29. Qb2 {[%emt 0:00:02]} Rc3 {[%emt 0:00:54]} 30. Qd2 {[%emt 0:00:54]} Qc5 {[%emt 0:00:40]} 31. Kh2 {[%emt 0:00:21]} Qxd5 {[%emt 0:00:36]} 32. a4 {[%emt 0:00:37]} Qa5 {[%emt 0:01:00]} 33. Qb2 {[%emt 0:00:16]} Qc7 {[%emt 0:00:16]} 34. Qd2 {[%emt 0:00:40]} d3 {[%emt 0:00:38]} 35. Qe3+ {[%emt 0:00:10]} Qc5 {[%emt 0:00:34]} 36. Qe8 {[%emt 0:00:27]} Rb7 {[%emt 0:00:55]} 37. Rd1 {[%emt 0:00:45]} Qe7 {[%emt 0:00:44]} 38. Qh8 {[%emt 0:00:31]} Rc2 {[%emt 0:00:45]} 39. Qd4+ {[%emt 0:00:35]} Qc5 {[%emt 0:00:33]} 40. Qxd3 {[%emt 0:00:01]} Rc3 {[%emt 0:00:30]} 41. Qd8 {[%emt 0:00:58]} Qc4 {[%emt 0:00:28]} 42. Rd4 {[%emt 0:00:37]} Qc7 {[%emt 0:00:52]} 43. Qf6 {[%emt 0:00:17]} Rc4 {[%emt 0:00:23]} 44. Rd6 {[%emt 0:00:34]} Rb6 {[%emt 0:00:31]} 45. Rxb6 {[%emt 0:00:21]} Qxb6 {[%emt 0:00:08]} 46. Qxf7+ {[%emt 0:00:04]} Rc7 {[%emt 0:00:07]} 47. Qf8 {[%emt 0:00:41]} h5 {[%emt 0:00:29]} 48. Qd8 {[%emt 0:00:37]} Rb7 {[%emt 0:00:28]} 49. Qg5 {[%emt 0:00:22]} Rf7 {[%emt 0:00:38]} 50. a5 {[%emt 0:00:15]} Qc7 {[%emt 0:00:41]} 51. Qxg6 {[%emt 0:00:59]} Rxf4 {[%emt 0:00:36]} 52. Kg1 {[%emt 0:00:50]} Rc4 {[%emt 0:01:21]} 53. Qxh5 {[%emt 0:00:20]} Qc5+ {[%emt 0:00:15]} 54. Qxc5+ {[%emt 0:00:12]} Rxc5 {[%emt 0:00:06]} 55. g4 {[%emt 0:00:07]} Rxa5 {[%emt 0:00:06]} 56. Kg2 {[%emt 0:00:05]} Kb7 {[%emt 0:00:07]} 57. Kg3 {[%emt 0:00:06]} Kc7 {[%emt 0:00:12]} 58. h4 {[%emt 0:00:06]} Kd7 {[%emt 0:00:43]} 59. h5 {[%emt 0:00:09]} Rb5 {[%emt 0:00:11]} 60. h6 {[%emt 0:00:14]} Rb8 {[%emt 0:00:25]} 61. g5 {[%emt 0:00:10]} Ke7 {[%emt 0:00:14]} 62. Kg4 {[%emt 0:00:16]} Kf7 {[%emt 0:00:47]} 63. Kh5 {[%emt 0:00:16]} Rb5 {[%emt 0:00:15]} 64. h7 {[%emt 0:00:45]} Kg7 {[%emt 0:00:04]} 65. h8=Q+ {[%emt 0:00:14]} Kxh8 {[%emt 0:00:15]} 66. Kh6 {[%emt 0:00:02]} Kg8 {[%emt 0:00:23]} 67. g6 {[%emt 0:00:10]} Rb6 {[%emt 0:00:16]} 0-1

[Event "Croatian junior league 2021"]
[Site "Rabac"]
[Date "2021.04.08"]
[Round "5.9"]
[White "Alfirevic, Duje"]
[Black "Kovac, Petar"]
[Result "1/2-1/2"]
[ECO "C07"]
[WhiteElo "1996"]
[BlackElo "2089"]
[Annotator "RC"]
[PlyCount "62"]
[EventDate "2021.04.06"]
[EventType "swiss"]
[EventCountry "CRO"]
[SourceTitle "playchess.com"]
[Source "ChessBase"]
[SourceQuality "1"]
[TimeControl "5400+30"]

1. e4 {[%emt 0:03:02]} e6 {[%emt 0:00:00]} 2. d4 {[%emt 0:00:32]} d5 {[%emt 0:00:00]} 3. Nd2 {[%emt 0:00:11]} c5 {[%emt 0:00:00]} 4. Ngf3 {[%emt 0:00:05]} cxd4 {[%emt 0:00:00]} 5. exd5 {[%emt 0:00:06]} Qxd5 {[%emt 0:00:00]} 6. Bc4 {[%emt 0:00:09]} Qd7 {[%emt 0:00:00]} 7. O-O {[%emt 0:00:44]} Nc6 {[%emt 0:00:08]} 8. Nb3 {[%emt 0:00:17]} Nf6 {[%emt 0:01:01]} 9. Nbxd4 {[%emt 0:00:33]} Nxd4 {[%emt 0:00:05]} 10. Nxd4 {[%emt 0:00:45]} a6 {[%emt 0:00:05]} 11. c3 {[%emt 0:05:24]} Qc7 {[%emt 0:00:16]} 12. Bb3 {[%emt 0:00:27]} Bd6 {[%emt 0:01:05]} 13. h3 {[%emt 0:00:11]} O-O {[%emt 0:00:50]} 14. Bg5 {[%emt 0:02:27]} Ne4 {[%emt 0:02:33]} 15. Bh4 {[%emt 0:09:49]} e5 {[%emt 0:14:03]} 16. Nf3 {[%emt 0:04:34]} Bf5 {[%emt 0:04:56]} 17. Bc2 {[%emt 0:10:40]} Bg6 {[%emt 0:03:42]} 18. Re1 {[%emt 0:03:50]} Nf6 {[%emt 0:03:33]} 19. Bxf6 {[%emt 0:06:33]} gxf6 {[%emt 0:00:17]} 20. Nh4 {[%emt 0:03:44]} Bc5 {[%emt 0:04:19]} 21. Qg4 {[%emt 0:11:28]} Kh8 {[%emt 0:12:15]} 22. Nf5 {[%emt 0:02:45]} Qb6 {[%emt 0:02:25]} 23. Re2 {[%emt 0:01:50]} a5 {[%emt 0:06:12]} 24. h4 {[%emt 0:03:22]} h5 {[%emt 0:04:41]} 25. Qf3 {[%emt 0:00:44]} Qxb2 {[%emt 0:02:24]} 26. Rae1 {[%emt 0:01:21]} Qxa2 {[%emt 0:02:59]} 27. Ng3 {[%emt 0:03:04]} Qe6 {[%emt 0:06:25]} 28. Bf5 {[%emt 0:01:14]} Qc6 {[%emt 0:02:09]} 29. Be4 {[%emt 0:00:46]} Qe6 {[%emt 0:00:20]} 30. Bf5 {[%emt 0:00:55]} Qc6 {[%emt 0:00:48]} 31. Be4 {[%emt 0:02:14]} Qe6 {[%emt 0:00:13]} 1/2-1/2